fUST/lending_fUST_20250529
["ID","MTS","AMOUNT","RATE_DAILY","PERIOD"]
[362826931,1748475039400,-545.98580768,0.00022831,8]
[362826932,1748475039410,-158.8992567,0.00022849,2]
[362826933,1748475039419,-178.6033813,0.00022849,2]
[362826934,1748475039429,-158.3064961,0.00022849,2]
[362826935,1748475039438,-571.7598589,0.00022849,2]
[362826936,1748475039448,-389.535339,0.00022849,2]
[362826937,1748475039457,-158.368211,0.00022849,2]
[362826939,1748475039467,-153.0,0.00022849,2]
[362826940,1748475039476,-153.0,0.00022849,2]
[362826941,1748475039485,-571.9742255,0.00022849,2]
[362826942,1748475039495,-153.0,0.00022849,2]
[362826943,1748475039503,-176.3331419,0.00022849,2]
[362826945,1748475039512,-153.0,0.00022849,2]
[362826947,1748475039521,-176.3331419,0.00022849,2]
[362826950,1748475039529,-176.3331419,0.00022849,2]
[362826952,1748475039539,-153.0,0.00022849,2]
[362826953,1748475039548,-10436.94,0.00022852,2]
[362826956,1748475039565,-1000.0,0.00022909,2]
[362826958,1748475039578,-1000.0,0.00022909,2]
[362826960,1748475039588,-207.4,0.0002292,2]
[362826963,1748475039598,-1000.7687813,0.00022925,2]
[362826964,1748475039610,-500.0,0.00023,2]
[362826966,1748475039619,-2000.0,0.00023,2]
[362826968,1748475039629,-8466.17,0.00023,2]
[362826971,1748475039639,-138147.63,0.00023,7]
[362826972,1748475039649,-1600.29,0.00023,7]
[362826974,1748475039658,-3796.84,0.00023,7]
[362826976,1748475039667,-151.0,0.00023,7]
[362826979,1748475039677,-151.194114,0.00023,7]
[362826981,1748475039687,-151.0,0.00023,7]
[362826983,1748475039696,-151.0,0.00023,7]
[362826985,1748475039706,-151.0,0.00023,7]
[362826987,1748475039715,-151.639038,0.00023,7]
[362826989,1748475039724,-151.0,0.00023,7]
[362826991,1748475039734,-3000.0,0.00023,2]
[362826993,1748475039743,-2450.98326218,0.00023,2]
[362826995,1748475039753,-151.0,0.00023,7]
[362826997,1748475039763,-151.0,0.00023,7]
[362826999,1748475039772,-151.0,0.00023,7]
[362827001,1748475039782,-151.0,0.00023,7]
[362827003,1748475039791,-151.0,0.00023,7]
[362827005,1748475039801,-151.0,0.00023,7]
[362827007,1748475039811,-1196.944857,0.00023,2]
[362827009,1748475039820,-151.0,0.00023,7]
[362827011,1748475039830,-1196.944857,0.00023,2]
[362827013,1748475039839,-151.0,0.00023,7]
[362827015,1748475039849,-151.0,0.00023,7]
[362827017,1748475039862,-528.908239,0.00023,7]
[362827019,1748475039873,-545.98580768,0.00023003,8]
[362827021,1748475039882,-807.42,0.00023009,2]
[362827022,1748475039891,-987.96,0.00023009,2]
[362827025,1748475039902,-932.78,0.00023009,2]
[362827027,1748475039911,-430.0,0.00023009,2]
[362827029,1748475039921,-1325.63,0.00023011,2]
[362827031,1748475039931,-430.0,0.00023011,2]
[362827033,1748475039941,-1446.92,0.00023011,2]
[362827035,1748475039950,-430.0,0.00023011,2]
[362827037,1748475039960,-430.0,0.00023011,2]
[362827039,1748475039969,-658.61,0.00023011,2]
[362827041,1748475039979,-430.0,0.00023011,2]
[362827043,1748475039989,-831.83,0.00023011,2]
[362827045,1748475040002,-1188.75,0.00023011,2]
[362827047,1748475040012,-430.0,0.00023012,2]
[362827049,1748475040021,-430.0,0.00023012,2]
[362827051,1748475040031,-430.0,0.00023012,2]
[362827053,1748475040043,-614.88,0.00023012,2]
[362827055,1748475040052,-430.0,0.00023012,2]
[362827057,1748475040061,-770.24,0.00023012,2]
[362827059,1748475040071,-486.9,0.00023012,2]
[362827061,1748475040082,-325.0,0.00023014,7]
[362827063,1748475040092,-720.1882602,0.00023096,2]
[362827065,1748475040102,-2000.0,0.000231,2]
[362827067,1748475040114,-2000.0,0.000231,2]
[362827069,1748475040123,-151.0,0.000231,9]
[362827085,1748475040263,-545.98580768,0.00023176,8]
[362827087,1748475040273,-1000.0,0.00023197,5]
[362827089,1748475040283,-151.0,0.000232,2]
[362827091,1748475040292,-739.89,0.00023247,4]
[362827093,1748475040301,-1043.5552424,0.00023268,2]
[362827095,1748475040310,-1500.0,0.00023268,2]
[362827097,1748475040319,-1506.98858576,0.00023268,2]
[362827099,1748475040329,-1000.0,0.00023268,2]
[362827101,1748475040338,-1000.0,0.00023268,2]
[362827103,1748475040348,-1800.0,0.00023268,2]
[362827105,1748475040359,-500.0,0.00023283,2]
[362827107,1748475040369,-807.42,0.00023283,2]
[362827109,1748475040379,-987.96,0.00023283,2]
[362827111,1748475040388,-932.78,0.00023283,2]
[362827113,1748475040397,-430.0,0.00023283,2]
[362827115,1748475040407,-1325.63,0.00023285,2]
[362827117,1748475040417,-430.0,0.00023285,2]
[362827119,1748475040426,-1446.92,0.00023285,2]
[362827121,1748475040435,-430.0,0.00023285,2]
[362827123,1748475040444,-430.0,0.00023285,2]
[362827125,1748475040453,-658.61,0.00023285,2]
[362827127,1748475040463,-430.0,0.00023285,2]
[362827129,1748475040472,-831.83,0.00023285,2]
[362827131,1748475040481,-1188.75,0.00023285,2]
[362827133,1748475040490,-430.0,0.00023286,2]
[362827135,1748475040499,-151.0,0.00023286,7]
[362827137,1748475040508,-430.0,0.00023286,2]
[362827139,1748475040518,-430.0,0.00023286,2]
[362827141,1748475040528,-614.88,0.00023286,2]
[362827143,1748475040537,-430.0,0.00023286,2]
[362827145,1748475040547,-770.24,0.00023286,2]
[362827147,1748475040556,-486.9,0.00023286,2]
[362827149,1748475040566,-19682.56189656,0.00023293,7]
[362827151,1748475040575,-6217.21599418,0.00023293,7]
[362827153,1748475040584,-6217.21599418,0.00023293,7]
[362827155,1748475040593,-15024.7677043,0.00023293,7]
[362827157,1748475040606,-15024.7677043,0.00023293,7]
[362827159,1748475040616,-500.0,0.00023293,9]
[362827161,1748475040625,-500.0,0.00023293,9]
[362827163,1748475040634,-3000.0,0.00023333,2]
[362827165,1748475040643,-739.89,0.00023347,2]
[362827167,1748475040652,-545.98580768,0.00023348,9]
[362827169,1748475040662,-1000.0,0.00023356,2]
[362827171,1748475040671,-176.3331419,0.0002337,2]
[362827173,1748475040680,-571.9742255,0.0002337,2]
[362827175,1748475040689,-176.3331419,0.0002337,2]
[362827177,1748475040698,-571.9742255,0.0002337,2]
[362827179,1748475040707,-315.5199103,0.0002337,2]
[362827181,1748475040714,-176.3331419,0.0002337,2]
[362827183,1748475040724,-571.9742255,0.0002337,2]
[362827185,1748475040733,-176.3331419,0.0002337,2]
[362827187,1748475040742,-571.9742255,0.0002337,2]
[362827189,1748475040751,-158.3064961,0.0002337,2]
[362827191,1748475040760,-176.3331419,0.0002337,2]
[362827193,1748475040769,-571.9742255,0.0002337,2]
[362827195,1748475040779,-176.3331419,0.0002337,2]
[362827197,1748475040788,-911.2673915,0.0002337,2]
[362827199,1748475040798,-176.3331419,0.0002337,2]
[362827201,1748475040807,-1143.5197178,0.0002337,2]
[362827203,1748475040816,-176.3331419,0.0002337,2]
[362827205,1748475040826,-347.9107627,0.0002337,2]
[362827207,1748475040835,-151.0,0.000234,6]
[362827209,1748475040844,-5482.73490601,0.000234,2]
[362827211,1748475040855,-151.0,0.000234,5]
[362827213,1748475040864,-739.89,0.00023447,4]
[362827215,1748475040873,-1500.0,0.00023457,2]
[362827217,1748475040882,-1000.0,0.000235,2]
[362827219,1748475040891,-545.98580768,0.00023521,9]
[362827221,1748475040901,-739.89,0.00023547,7]
[362827223,1748475040910,-807.42,0.00023557,2]
[362827225,1748475040919,-987.96,0.00023557,2]
[362827227,1748475040928,-932.78,0.00023557,2]
[362827229,1748475040937,-430.0,0.00023557,2]
[362827231,1748475040947,-1325.63,0.00023559,2]
[362827233,1748475040956,-430.0,0.00023559,2]
[362827235,1748475040967,-1446.92,0.00023559,2]
[362827237,1748475040976,-430.0,0.00023559,2]
[362827239,1748475040985,-430.0,0.00023559,2]
[362827241,1748475040995,-658.61,0.00023559,2]
[362827243,1748475041010,-183.58,0.00023559,2]
[362827245,1748475041019,-831.83,0.00023559,2]
[362827247,1748475041029,-1188.75,0.00023559,2]
[362827249,1748475041039,-430.0,0.0002356,2]
[362827251,1748475041047,-430.0,0.0002356,2]
[362827253,1748475041056,-430.0,0.0002356,2]
[362827255,1748475041066,-614.88,0.0002356,2]
[362827257,1748475041076,-430.0,0.0002356,2]
[362827259,1748475041086,-770.24,0.0002356,2]
[362827261,1748475041095,-486.9,0.0002356,2]
[362827263,1748475041106,-637.0,0.000236,2]
[362827266,1748475041115,-153.0,0.00023644,2]
[362827268,1748475041124,-153.0,0.00023644,2]
[362827270,1748475041134,-153.0,0.00023644,2]
[362827271,1748475041143,-153.0,0.00023644,2]
[362827274,1748475041152,-153.0,0.00023644,2]
[362827275,1748475041161,-153.0,0.00023644,2]
[362827277,1748475041171,-153.0,0.00023644,2]
[362827279,1748475041181,-153.0,0.00023644,2]
[362827281,1748475041190,-153.0,0.00023644,2]
[362827283,1748475041199,-739.89,0.00023647,2]
[362827285,1748475041208,-500.0,0.00023673,2]
[362827288,1748475041218,-500.0,0.00023673,2]
[362827290,1748475041228,-545.98580768,0.00023693,9]
[362827292,1748475041237,-48336.35,0.000237,2]
[362827294,1748475041247,-151.0,0.000237,7]
[362827296,1748475041256,-151.0,0.000237,7]
[362827298,1748475041265,-151.0,0.000237,7]
[362827299,1748475041275,-151.0,0.000237,7]
[362827302,1748475041284,-151.0,0.000237,7]
[362827304,1748475041293,-151.0,0.000237,7]
[362827306,1748475041302,-151.0,0.000237,7]
[362827308,1748475041312,-151.0,0.000237,7]
[362827310,1748475041321,-190.102281,0.000237,7]
[362827312,1748475041330,-190.102281,0.000237,7]
[362827314,1748475041340,-151.0,0.000237,7]
[362827316,1748475041350,-159.580091,0.000237,7]
[362827318,1748475041365,-151.0,0.000237,7]
[362827320,1748475041374,-151.0,0.000237,7]
[362827322,1748475041384,-151.0,0.000237,7]
[362827324,1748475041394,-151.0,0.000237,7]
[362827326,1748475041404,-151.0,0.000237,7]
[362827328,1748475041413,-1196.944857,0.000237,2]
[362827330,1748475041423,-151.0,0.000237,7]
[362827332,1748475041432,-1196.944857,0.000237,2]
[362827334,1748475041442,-151.0,0.000237,7]
[362827336,1748475041451,-287.66836,0.000237,7]
[362827338,1748475041461,-528.908239,0.000237,7]
[362827340,1748475041470,-587.0,0.00023709,2]
[362827342,1748475041480,-1533.0,0.00023715,15]
[362827344,1748475041490,-739.89,0.00023747,6]
[362827346,1748475041499,-270.211908,0.0002381,7]
[362827348,1748475041510,-2000.0,0.00023816,2]
[362827350,1748475041520,-847.7601057,0.00023816,2]
[362827650,1748475357313,160.897544,0.00013699,2]
[362827677,1748476231996,-407.96641018,0.000189,2]
[362827690,1748476232117,-561.9168599,0.000189,2]
[362827697,1748476232159,-255.74889453,0.000189,2]
[362827913,1748476238220,-891.78696104,0.000189,2]
[362827915,1748476238230,-350.6749667,0.00019361,2]
[362827916,1748476238239,-190.927822,0.00019495,2]
[362827917,1748476238250,-300.0,0.00019996,2]
[362827918,1748476238259,-430.0,0.00019997,2]
[362827919,1748476238269,-430.0,0.00019997,2]
[362827920,1748476238279,-430.0,0.00019997,2]
[362827921,1748476238288,-430.0,0.00019997,2]
[362827922,1748476238300,-250.54742563,0.00020258,2]
[362827923,1748476238310,-430.0,0.00020269,2]
[362827924,1748476238320,-430.0,0.00020269,2]
[362827925,1748476238330,-1024.24,0.00020269,2]
[362827926,1748476238339,-430.0,0.00020269,2]
[362827927,1748476238349,-156.33181141,0.00020269,2]
[362827928,1748476238361,-273.66818859,0.00020269,2]
[362827929,1748476238370,-459.76,0.00020269,2]
[362827930,1748476238379,-430.0,0.00020269,2]
[362827931,1748476238389,-430.0,0.00020269,2]
[362827932,1748476238399,-430.0,0.00020269,2]
[362827933,1748476238409,-352.67180141,0.00020269,2]
[362827934,1748476238421,-77.32819859,0.00020269,2]
[362827935,1748476238430,-430.0,0.00020269,2]
[362827936,1748476238440,-430.0,0.00020269,2]
[362827937,1748476238450,-301.61946089,0.0002027,2]
[362827938,1748476238463,-430.0,0.0002027,2]
[362827939,1748476238472,-430.0,0.0002027,2]
[362827940,1748476238482,-430.0,0.0002027,2]
[362827941,1748476238504,-430.0,0.0002027,2]
[362827942,1748476238515,-430.0,0.0002027,2]
[362827943,1748476238525,-430.0,0.0002027,2]
[362827944,1748476238536,-612.45,0.0002027,2]
[362827945,1748476238547,-433.97,0.0002027,2]
[362827946,1748476238557,-430.0,0.0002027,2]
[362827947,1748476238567,-582.36,0.0002027,2]
[362827948,1748476238578,-784.06,0.0002027,2]
[362827949,1748476238588,-636.8,0.0002027,2]
[362827950,1748476238597,-430.0,0.0002027,2]
[362827951,1748476238607,-729.76,0.0002027,2]
[362827952,1748476238617,-861.23,0.0002027,2]
[362827953,1748476238627,-430.0,0.0002027,2]
[362827954,1748476238637,-430.0,0.0002027,2]
[362827955,1748476238647,-430.0,0.0002027,2]
[362827956,1748476238658,-430.0,0.0002027,2]
[362827957,1748476238668,-430.0,0.0002027,2]
[362827958,1748476238678,-430.0,0.0002027,2]
[362827959,1748476238688,-453.39476913,0.0002027,2]
[362827960,1748476238698,-236.41417573,0.0002027,2]
[362827961,1748476238707,-595.78549809,0.0002027,2]
[362827962,1748476238718,-500.0,0.0002027,2]
[362827963,1748476238727,-563.91413932,0.0002027,2]
[362827964,1748476238737,-430.0,0.0002027,2]
[362827965,1748476238747,-988.83,0.0002027,2]
[362827966,1748476238757,-430.0,0.0002027,2]
[362827967,1748476238767,-430.0,0.00020271,2]
[362827968,1748476238776,-430.0,0.00020271,2]
[362827969,1748476238786,-430.0,0.00020271,2]
[362827970,1748476238796,-224.71333273,0.00020271,2]
[362827971,1748476238806,-182.54,0.00020271,2]
[362827972,1748476238815,-430.0,0.00020271,2]
[362827973,1748476238826,-430.0,0.00020271,2]
[362827974,1748476238836,-564.51936208,0.00020271,2]
[362827975,1748476238845,-160.0,0.00020408,2]
[362827976,1748476238855,-160.0,0.00020408,2]
[362827977,1748476238864,-160.0,0.00020408,2]
[362827978,1748476238874,-160.0,0.00020408,2]
[362827979,1748476238884,-212.66609673,0.00020408,2]
[362827980,1748476238894,-423.24161968,0.00020408,2]
[362827981,1748476238903,-842.5625,0.00020408,2]
[362827982,1748476238913,-229.229959,0.00020408,2]
[362827983,1748476238923,-160.0,0.00020409,2]
[362827984,1748476238933,-235.71462683,0.00020443,2]
[362827985,1748476238943,-430.0,0.00020543,2]
[362827986,1748476238954,-1024.24,0.00020543,2]
[362827987,1748476238964,-430.0,0.00020543,2]
[362827988,1748476238974,-459.76,0.00020543,2]
[362827989,1748476238983,-430.0,0.00020543,2]
[362827990,1748476238993,-430.0,0.00020543,2]
[362827991,1748476239002,-430.0,0.00020543,2]
[362827992,1748476239012,-430.0,0.00020544,2]
[362827993,1748476239022,-430.0,0.00020544,2]
[362827994,1748476239033,-430.0,0.00020544,2]
[362827995,1748476239043,-612.45,0.00020544,2]
[362827996,1748476239052,-433.97,0.00020544,2]
[362827997,1748476239062,-430.0,0.00020544,2]
[362827998,1748476239071,-582.36,0.00020544,2]
[362827999,1748476239081,-784.06,0.00020544,2]
[362828000,1748476239091,-636.8,0.00020544,2]
[362828001,1748476239100,-430.0,0.00020544,2]
[362828002,1748476239110,-729.76,0.00020544,2]
[362828003,1748476239120,-861.23,0.00020544,2]
[362828004,1748476239130,-430.0,0.00020544,2]
[362828005,1748476239139,-430.0,0.00020544,2]
[362828006,1748476239149,-430.0,0.00020544,2]
[362828007,1748476239159,-430.0,0.00020544,2]
[362828008,1748476239168,-430.0,0.00020544,2]
[362828009,1748476239177,-430.0,0.00020544,2]
[362828010,1748476239187,-988.83,0.00020544,2]
[362828011,1748476239197,-160.0,0.00020545,2]
[362828012,1748476239206,-430.0,0.00020545,2]
[362828013,1748476239215,-430.0,0.00020545,2]
[362828014,1748476239225,-301.25,0.00020744,2]
[362828015,1748476239234,-3311.77,0.00020748,2]
[362828016,1748476239246,-430.0,0.00020817,2]
[362828017,1748476239256,-1024.24,0.00020817,2]
[362828018,1748476239266,-430.0,0.00020817,2]
[362828019,1748476239276,-459.76,0.00020817,2]
[362828020,1748476239286,-430.0,0.00020817,2]
[362828021,1748476239295,-430.0,0.00020817,2]
[362828022,1748476239304,-430.0,0.00020817,2]
[362828023,1748476239313,-430.0,0.00020818,2]
[362828024,1748476239324,-430.0,0.00020818,2]
[362828025,1748476239334,-162.62,0.00020818,2]
[362828026,1748476239343,-612.45,0.00020818,2]
[362828027,1748476239353,-433.97,0.00020818,2]
[362828028,1748476239363,-430.0,0.00020818,2]
[362828029,1748476239372,-582.36,0.00020818,2]
[362828030,1748476239381,-784.06,0.00020818,2]
[362828031,1748476239391,-636.8,0.00020818,2]
[362828032,1748476239400,-430.0,0.00020818,2]
[362828033,1748476239410,-729.76,0.00020818,2]
[362828034,1748476239419,-861.23,0.00020818,2]
[362828035,1748476239429,-430.0,0.00020818,2]
[362828036,1748476239438,-430.0,0.00020818,2]
[362828037,1748476239449,-430.0,0.00020818,2]
[362828038,1748476239461,-430.0,0.00020818,2]
[362828039,1748476239471,-430.0,0.00020818,2]
[362828040,1748476239481,-988.83,0.00020818,2]
[362828041,1748476239490,-430.0,0.00020819,2]
[362828042,1748476239501,-430.0,0.00020819,2]
[362828043,1748476239511,-361.21730835,0.00020999,2]
[362828045,1748476239521,-375.70771937,0.00020999,2]
[362828047,1748476239532,-500.0,0.00020999,2]
[362828049,1748476239541,-500.0,0.00020999,2]
[362828051,1748476239554,-600.52989576,0.00020999,2]
[362828053,1748476239564,-500.0,0.00020999,2]
[362828055,1748476239574,-500.0,0.00020999,2]
[362828057,1748476239584,-500.0,0.00020999,2]
[362828059,1748476239593,-339.65991314,0.00020999,2]
[362828061,1748476239604,-323800.0,0.00021,5]
[362828062,1748476239614,-638.24278703,0.00021,2]
[362828063,1748476239624,-500.0,0.0002103,2]
[362828064,1748476239635,-430.0,0.00021091,2]
[362828065,1748476239645,-1024.24,0.00021091,2]
[362828066,1748476239654,-430.0,0.00021091,2]
[362828067,1748476239664,-459.76,0.00021091,2]
[362828068,1748476239674,-510.72,0.00021091,2]
[362828069,1748476239683,-430.0,0.00021091,2]
[362828070,1748476239694,-430.0,0.00021091,2]
[362828071,1748476239704,-430.0,0.00021092,2]
[362828073,1748476239713,-430.0,0.00021092,2]
[362828075,1748476239723,-612.45,0.00021092,2]
[362828076,1748476239733,-433.97,0.00021092,2]
[362828078,1748476239743,-430.0,0.00021092,2]
[362828079,1748476239752,-582.36,0.00021092,2]
[362828081,1748476239761,-784.06,0.00021092,2]
[362828082,1748476239771,-636.8,0.00021092,2]
[362828083,1748476239780,-430.0,0.00021092,2]
[362828085,1748476239790,-729.76,0.00021092,2]
[362828087,1748476239799,-861.23,0.00021092,2]
[362828090,1748476239809,-430.0,0.00021092,2]
[362828093,1748476239819,-430.0,0.00021092,2]
[362828095,1748476239830,-430.0,0.00021092,2]
[362828098,1748476239839,-430.0,0.00021092,2]
[362828101,1748476239849,-430.0,0.00021092,2]
[362828103,1748476239859,-988.83,0.00021092,2]
[362828105,1748476239869,-430.0,0.00021093,2]
[362828107,1748476239879,-430.0,0.00021093,2]
[362828109,1748476239888,-500.0,0.000211,2]
[362828111,1748476239898,-900.0,0.00021164,2]
[362828113,1748476239908,-430.0,0.00021365,2]
[362828115,1748476239917,-1024.24,0.00021365,2]
[362828117,1748476239927,-430.0,0.00021365,2]
[362828119,1748476239936,-459.76,0.00021365,2]
[362828122,1748476239946,-430.0,0.00021365,2]
[362828124,1748476239956,-430.0,0.00021365,2]
[362828126,1748476239966,-430.0,0.00021366,2]
[362828128,1748476239975,-430.0,0.00021366,2]
[362828130,1748476239985,-612.45,0.00021366,2]
[362828132,1748476239995,-433.97,0.00021366,2]
[362828134,1748476240005,-430.0,0.00021366,2]
[362828138,1748476240015,-582.36,0.00021366,2]
[362828142,1748476240027,-784.06,0.00021366,2]
[362828145,1748476240036,-636.8,0.00021366,2]
[362828148,1748476240046,-344.97,0.00021366,2]
[362828151,1748476240055,-729.76,0.00021366,2]
[362828154,1748476240065,-861.23,0.00021366,2]
[362828157,1748476240074,-430.0,0.00021366,2]
[362828160,1748476240083,-430.0,0.00021366,2]
[362828163,1748476240092,-430.0,0.00021366,2]
[362828166,1748476240103,-430.0,0.00021366,2]
[362828168,1748476240112,-430.0,0.00021366,2]
[362828171,1748476240122,-988.83,0.00021366,2]
[362828175,1748476240131,-430.0,0.00021367,2]
[362828178,1748476240142,-430.0,0.00021367,2]
[362828181,1748476240151,-5000.0,0.00021436,2]
[362828184,1748476240161,-1000.0,0.00021578,2]
[362828186,1748476240170,-430.0,0.00021639,2]
[362828190,1748476240180,-1024.24,0.00021639,2]
[362828192,1748476240190,-430.0,0.00021639,2]
[362828196,1748476240199,-459.76,0.00021639,2]
[362828198,1748476240209,-430.0,0.00021639,2]
[362828201,1748476240218,-430.0,0.00021639,2]
[362828204,1748476240227,-430.0,0.0002164,2]
[362828207,1748476240237,-430.0,0.0002164,2]
[362828210,1748476240246,-612.45,0.0002164,2]
[362828213,1748476240255,-433.97,0.0002164,2]
[362828216,1748476240264,-430.0,0.0002164,2]
[362828220,1748476240274,-582.36,0.0002164,2]
[362828224,1748476240284,-784.06,0.0002164,2]
[362828227,1748476240293,-636.8,0.0002164,2]
[362828229,1748476240303,-729.76,0.0002164,2]
[362828231,1748476240312,-861.23,0.0002164,2]
[362828233,1748476240322,-430.0,0.0002164,2]
[362828235,1748476240332,-430.0,0.0002164,2]
[362828238,1748476240342,-430.0,0.0002164,2]
[362828240,1748476240351,-430.0,0.0002164,2]
[362828242,1748476240360,-430.0,0.0002164,2]
[362828244,1748476240370,-988.83,0.0002164,2]
[362828246,1748476240379,-430.0,0.00021641,2]
[362828248,1748476240389,-430.0,0.00021641,2]
[362828249,1748476240399,-1000.0,0.00021648,2]
[362828250,1748476240408,-6623.54,0.00021736,2]
[362828252,1748476240417,-420.0,0.00021774,2]
[362828254,1748476240426,-1799.59,0.000219,2]
[362828256,1748476240435,-376.48472657,0.000219,6]
[362828258,1748476240444,-430.0,0.00021913,2]
[362828260,1748476240455,-1024.24,0.00021913,2]
[362828262,1748476240465,-430.0,0.00021913,2]
[362828264,1748476240474,-459.76,0.00021913,2]
[362828265,1748476240483,-430.0,0.00021913,2]
[362828266,1748476240492,-183.58,0.00021913,2]
[362828267,1748476240502,-430.0,0.00021914,2]
[362828268,1748476240511,-430.0,0.00021914,2]
[362828269,1748476240520,-612.45,0.00021914,2]
[362828270,1748476240530,-433.97,0.00021914,2]
[362828271,1748476240539,-430.0,0.00021914,2]
[362828272,1748476240549,-582.36,0.00021914,2]
[362828273,1748476240558,-784.06,0.00021914,2]
[362828274,1748476240567,-636.8,0.00021914,2]
[362828275,1748476240577,-729.76,0.00021914,2]
[362828276,1748476240587,-861.23,0.00021914,2]
[362828277,1748476240596,-430.0,0.00021914,2]
[362828278,1748476240605,-430.0,0.00021914,2]
[362828279,1748476240614,-430.0,0.00021914,2]
[362828280,1748476240624,-430.0,0.00021914,2]
[362828281,1748476240634,-430.0,0.00021914,2]
[362828282,1748476240643,-988.83,0.00021914,2]
[362828283,1748476240652,-430.0,0.00021915,2]
[362828284,1748476240662,-268.18003119,0.00021915,2]
[362828285,1748476240671,-500.0,0.00021917,2]
[362828286,1748476240680,-2000.0,0.00022,2]
[362828287,1748476240689,-162.0,0.00022,2]
[362828288,1748476240699,-1440.26,0.00022,7]
[362828289,1748476240708,-162.0,0.00022,2]
[362828290,1748476240717,-376.48472637,0.00022003,6]
[362828291,1748476240726,-376.48472637,0.00022107,6]
[362828292,1748476240735,-170.69696392,0.0002211,2]
[362828293,1748476240745,-1500.0,0.00022126,2]
[362828294,1748476240754,-486.2334654,0.00022187,2]
[362828295,1748476240763,-1024.24,0.00022187,2]
[362828296,1748476240772,-430.0,0.00022187,2]
[362828297,1748476240782,-459.76,0.00022187,2]
[362828298,1748476240792,-430.0,0.00022187,2]
[362828299,1748476240801,-430.0,0.00022188,2]
[362828300,1748476240811,-430.0,0.00022188,2]
[362828301,1748476240820,-612.45,0.00022188,2]
[362828302,1748476240831,-433.97,0.00022188,2]
[362828303,1748476240840,-430.0,0.00022188,2]
[362828304,1748476240849,-582.36,0.00022188,2]
[362828305,1748476240859,-784.06,0.00022188,2]
[362828306,1748476240868,-636.8,0.00022188,2]
[362828307,1748476240878,-729.76,0.00022188,2]
[362828308,1748476240887,-861.23,0.00022188,2]
[362828309,1748476240897,-430.0,0.00022188,2]
[362828310,1748476240907,-430.0,0.00022188,2]
[362828311,1748476240916,-430.0,0.00022188,2]
[362828312,1748476240925,-430.0,0.00022188,2]
[362828313,1748476240934,-412.82954752,0.00022188,2]
[362828314,1748476240944,-988.83,0.00022188,2]
[362828315,1748476240953,-430.0,0.00022189,2]
[362828316,1748476240963,-376.48472637,0.0002221,6]
[362828317,1748476241089,-1000.0,0.00022234,7]
[362828318,1748476241098,-1000.0,0.00022234,7]
[362828319,1748476241107,-1000.0,0.00022234,7]
[362828320,1748476241117,-739.968307,0.00022234,2]
[362828321,1748476241266,-300.0,0.00020268,2]
[362828322,1748476241276,-8.58786846,0.00022064,2]
[362828323,1748476241287,-411.41213154,0.00022064,2]
[362828324,1748476241297,-260.031693,0.00022234,2]